[Event "Israeli Championship 2022"]
[Site "Yosiah Arad"]
[Date "2022.12.12"]
[Round "8.6"]
[White "Parkhov, Yair"]
[Black "Mikhalevski, Victor"]
[Result "0-1"]
[ECO "D37"]
[WhiteElo "2470"]
[BlackElo "2517"]
[Annotator "TA"]
[PlyCount "158"]
[EventDate "2022.12.05"]
[EventType "swiss"]
[EventCountry "ISR"]
[SourceTitle "playchess.com"]
[Source "ChessBase"]
[SourceQuality "1"]
[TimeControl "40/5400+30:1800+30"]

{[%evp 9,158,18,24,16,18,19,22,22,22,21,28,24,16,28,30,31,30,21,34,16,28,28,33,32,54,32,38,35,47,36,57,52,65,61,70,60,120,115,121,122,151,148,186,160,166,133,133,133,133,96,96,90,114,93,95,95,84,73,118,125,102,84,96,96,97,100,103,103,103,117,103,91,91,91,91,91,99,91,91,91,91,87,87,87,75,84,92,85,88,65,47,25,14,6,11,9,12,11,83,80,120,43,218,157,138,14,16,33,40,45,45,13,12,18,16,0,0,0,0,-688,-615,-12841,-12840,-12838,-12840,-29986,-29987,-29989,-29990,-29990,-29988,-29988,-29989,-29990,-29987,-29987,-12846,-12846,-12847,-12847,-12847,-12848,-12848,-12849,-12849,-29981,-12850,-29996,-29997,-29998,-29999]} 1. d4 {[%emt 0:00:02]} d5 {[%emt 0:02:42]} 2. c4 {[%emt 0:00:32]} e6 {[%emt 0:00:08]} 3. Nc3 {[%emt 0:00:05]} a6 {[%emt 0:00:30]} 4. cxd5 {[%emt 0:00:18]} exd5 {[%emt 0:00:04]} 5. Nf3 {[%emt 0:00:09]} Nf6 {[%emt 0:00:08]} 6. Bg5 {[%emt 0:00:18] D37: Queen's Gambit Declined: 5 Bf4.} Be6 {[%emt 0:00:07]} 7. e3 {[%emt 0:01:22]} Nbd7 {[%emt 0:00:13]} 8. Bd3 {[%emt 0:00:08] The position is equal.} Bd6 {[%emt 0:00:16]} 9. O-O {[%emt 0:00:50]} O-O {[%emt 0:02:54]} 10. h3 {[%emt 0:03:56]} c6 {[%emt 0:00:23]} 11. Bf4 {[%emt 0:01:10]} Qb8 {[%emt 0:00:12]} 12. Qc1 {[%emt 0:02:04] [#]} Nh5 $146 {[%emt 0:00:42][%cal Rh5f4]} ({Predecessor:} 12... h6 13. Rd1 Nh5 14. Bxd6 Qxd6 15. b3 Rfe8 16. Qb2 g6 17. Rac1 Ng7 18. e4 dxe4 19. Nxe4 {½-½ (32) Bronstein,O (2463)-Filip,A (2324) Miercurea Ciuc 2022}) 13. Bxd6 {[%emt 0:02:33]} Qxd6 {[%emt 0:00:02]} 14. b3 {[%emt 0:05:56]} f5 {[%emt 0:07:55]} 15. Ne2 {[%emt 0:07:16]} Nhf6 {[%emt 0:06:42]} 16. Qb2 {[%emt 0:08:34]} a5 {[%emt 0:18:04]} 17. Nf4 {[%emt 0:22:49]} Ne4 {[%emt 0:02:57] Inhibits Ng5.} 18. h4 {[%emt 0:02:24]} Bf7 {[%emt 0:05:13]} 19. g3 {[%emt 0:00:45]} Rfe8 {[%emt 0:06:05]} 20. Kg2 {[%emt 0:01:10]} g6 {[%emt 0:00:39]} 21. Be2 {[%emt 0:03:56]} Nef6 {[%emt 0:12:48]} 22. Rh1 {[%emt 0:13:27]} h5 {[%emt 0:05:03]} ({Black should try} 22... Qe7 $14) 23. Rhc1 {[%emt 0:03:21]} Ng4 {[%emt 0:04:13]} 24. Ng5 {[%emt 0:01:52]} Ngf6 {[%emt 0:07:01]} 25. a3 $1 {[%emt 0:02:07]} b6 {[%emt 0:13:45]} 26. b4 {[%emt 0:02:59]} a4 {[%emt 0:01:26]} 27. Rc2 {[%emt 0:02:27]} b5 {[%emt 0:01:56]} 28. Rac1 {[%emt 0:00:42]} Ra6 {[%emt 0:00:00]} 29. Nd3 {[%emt 0:03:16]} Re7 {[%emt 0:01:40]} 30. Nf3 {[%emt 0:03:22]} Be8 {[%emt 0:00:09]} 31. Nde5 {[%emt 0:00:56][%cal Re5c6]} Nf8 {[%emt 0:01:04]} 32. Ng5 {[%emt 0:01:23][%cal Bf3g5,Bg5h3,Bh3f4][%mdl 32]} Ne6 {[%emt 0:00:26]} 33. Nh3 {[%emt 0:01:31]} Ne4 {[%emt 0:00:29]} 34. f3 {[%emt 0:00:36]} Nf6 {[%emt 0:00:03]} 35. Rc3 {[%emt 0:00:11]} (35. Nf4 {simplifies} Nxf4+ 36. gxf4 Nh7 37. Qc3) 35... Kg7 {[%emt 0:00:27]} 36. Qc2 {[%emt 0:00:23]} Nd8 {[%emt 0:00:01]} 37. Nf4 {[%emt 0:01:02]} Rb6 {[%emt 0:01:03]} 38. Bd3 {[%emt 0:01:20]} Rxe5 {[%emt 0:00:53]} 39. dxe5 {[%emt 0:00:05]} Qxe5 {[%emt 0:00:02]} 40. Qd2 {[%emt 0:00:28][%cal Oe3e4]} Rb7 {[%emt 0:00:37]} 41. Bb1 {[%emt 0:06:11]} Re7 {[%emt 0:01:41]} 42. Qd4 {[%emt 0:04:55]} Bd7 {[%emt 0:13:06]} 43. Qxe5 {[%emt 0:02:03]} (43. Qb6 {feels hotter.} Re8 44. Kf2 Qe7 45. Bd3) 43... Rxe5 {[%emt 0:00:01]} 44. Kf2 {[%emt 0:00:14]} Ne8 {[%emt 0:01:51][%cal Bf6e8,Be8d6,Bd6c4][%mdl 32]} 45. Nd3 {[%emt 0:05:42]} Re7 {[%emt 0:00:14]} 46. Nc5 {[%emt 0:00:16]} Nd6 {[%emt 0:00:18]} 47. e4 {[%emt 0:04:31]} fxe4 {[%emt 0:03:33]} 48. fxe4 {[%emt 0:00:10]} Bg4 {[%emt 0:00:41] [#]} 49. Re1 $1 {[%emt 0:04:32]} Nc4 {[%emt 0:08:00]} 50. exd5 {[%emt 0:00:07]} Rf7+ {[%emt 0:00:01]} 51. Kg2 {[%emt 0:00:33]} cxd5 {[%emt 0:00:01]} 52. Rd3 {[%emt 0:00:55]} Nc6 {[%emt 0:00:39] Strongly threatening ...N6e5. Pair of Knights!} 53. Ba2 {[%emt 0:04:19]} (53. Rxd5 $2 Bf3+ 54. Kg1 Bxd5 $19) 53... N6e5 {[%emt 0:04:14]} (53... d4 $11 {remains equal.}) 54. Bxc4 $16 {[%emt 0:01:27]} (54. Rxd5 $2 Bf3+ 55. Kg1 Bxd5 $19) 54... bxc4 {[%emt 0:00:59]} 55. Rde3 {[%emt 0:00:11]} (55. Rxd5 $6 Bf3+ 56. Kg1 Bxd5 $11) 55... Bf3+ $2 {[%emt 0:00:25]} (55... Nf3 $14 56. Rf1 Nd2 57. Rxf7+ Kxf7) 56. Kg1 $18 {[%emt 0:00:20]} Be4 {[%emt 0:00:56]} 57. Nxe4 {[%emt 0:00:30]} ({Inferior is} 57. Nxa4 Nf3+ 58. Kf2 Nxh4+ 59. Ke2 Ng2 60. Rxe4 Nxe1 $17) (57. Ne6+ $16 Kg8 58. Ng5) 57... Nf3+ $11 {[%emt 0:00:01] [#]} 58. Rxf3 $1 {[%emt 0:00:21]} Rxf3 {[%emt 0:00:02][%mdl 4096] Endgame KRN-KR} 59. Nc5 {[%emt 0:01:17] And now b5 would win.} Rxg3+ {[%emt 0:01:50]} 60. Kf2 {[%emt 0:00:07]} (60. Kf1 $5 {[%cal Rb4b5]} Rf3+ 61. Ke2 Rxa3 62. Rd1 Ra2+ 63. Ke3 $16) 60... Rxa3 {[%emt 0:00:01]} 61. b5 {[%emt 0:02:31]} Ra2+ {[%emt 0:00:51]} 62. Re2 {[%emt 0:00:22]} (62. Ke3 $5 {[%cal Rb5b6]} Rb2 63. Kd4 $14 (63. Nxa4 Rxb5 64. Kd4 c3 $14)) 62... Rxe2+ {[%emt 0:01:16]} 63. Kxe2 {[%emt 0:00:01] KN-KP} a3 {[%emt 0:00:00]} 64. Ne6+ $2 {[%emt 0:00:11][%mdl 8192]} (64. b6 $11 a2 65. b7) 64... Kf6 $19 {[%emt 0:00:04]} 65. Nd4 {[%emt 0:00:03] [#] aiming for b6.} a2 $1 {[%emt 0:00:04]} 66. Nc2 {[%emt 0:00:05]} d4 $1 {[%emt 0:00:29]} 67. b6 {[%emt 0:03:16]} d3+ {[%emt 0:00:05]} 68. Kf2 {[%emt 0:00:13]} dxc2 {[%emt 0:00:07] KP-KP} 69. b7 {[%emt 0:00:01]} a1=Q {[%emt 0:00:34]} 70. b8=Q {[%emt 0:00:07] KQ-KQ} Qd4+ {[%emt 0:00:03]} 71. Kf3 {[%emt 0:00:36]} Qg4+ {[%emt 0:00:17]} (71... c1=B 72. Qh8+ Ke7 73. Qxd4 $18) 72. Kf2 {[%emt 0:00:12]} Qxh4+ {[%emt 0:00:08]} (72... Qf5+ $142 73. Kg2 c1=Q 74. Qd6+ Kg7 75. Qd4+ Kh7 76. Qa7+ Kh6 77. Qf2 c3 78. Kg3 Qxf2+ 79. Kxf2 Qf4+ 80. Ke2 c2 81. Ke1 c1=Q+ 82. Ke2 Qff1#) 73. Kf3 {[%emt 0:00:13]} Qg4+ {[%emt 0:00:12]} (73... c1=B $2 74. Qd8+ Kf5 75. Qxh4 $18) 74. Kf2 {[%emt 0:00:05]} Qf5+ {[%emt 0:00:12]} ({Worse is} 74... c1=Q 75. Qe5+ Kf7 76. Qe8+ Kf6 77. Qe5+ Kf7 78. Qe8+ Kf6 79. Qe5+ $11) 75. Kg2 {[%emt 0:00:08]} Qd5+ {[%emt 0:00:26]} 76. Kf2 {[%emt 0:00:09]} c1=Q {[%emt 0:00:08] ( -> ...Qc2+)} 77. Qf8+ {[%emt 0:01:31]} Qf7 {[%emt 0:00:11]} (77... Kg5 $142 78. Qe7+ Kg4 79. Qe2+ Kf4 80. Qe4+ Kxe4 81. Kg3 Qdg5+ 82. Kh2 Qcg1+ 83. Kh3 Qh1#) 78. Qc5 {[%emt 0:01:20]} Kg7+ {[%emt 0:00:10]} 79. Kg3 {[%emt 0:00:09]} Qff4+ {[%emt 0:00:08] Both players deserved the win here.   Weighted Error Value: White=0.09 (flawless) /Black=0.14 (very precise)} 0-1

[Event "Israeli Championship 2022"]
[Site "Yosiah Arad"]
[Date "2022.12.12"]
[Round "8.7"]
[White "Postny, Evgeny"]
[Black "Yaniv, Yuval"]
[Result "0-1"]
[ECO "E92"]
[WhiteElo "2588"]
[BlackElo "2343"]
[Annotator "TA"]
[PlyCount "104"]
[EventDate "2022.12.05"]
[EventType "swiss"]
[EventCountry "ISR"]
[SourceTitle "playchess.com"]
[Source "ChessBase"]
[SourceQuality "1"]
[TimeControl "40/5400+30:1800+30"]

{[%evp 19,104,42,50,49,50,41,56,20,11,6,16,28,12,-12,-19,-6,-15,-26,0,-24,0,0,0,0,15,-14,0,4,32,22,31,31,35,39,111,0,0,0,0,0,16,-82,-69,-100,-42,-94,-80,-67,-87,-77,-35,-63,-31,0,0,-27,-29,-37,-48,-57,-65,-48,-52,-60,-63,-293,-276,-209,-174,-237,-166,-189,-155,-176,-34,-1041,-1034,-10830,-1329,-1332,-1300,-29974,-29975,-29937,-1066,-29988,-29989]} 1. d4 {[%emt 0:00:04]} Nf6 {[%emt 0:00:15]} 2. c4 {[%emt 0:00:07]} g6 {[%emt 0:00:15]} 3. Nc3 {[%emt 0:00:10]} Bg7 {[%emt 0:00:35]} 4. e4 {[%emt 0:00:06]} d6 {[%emt 0:00:05]} 5. Nf3 {[%emt 0:00:14]} O-O {[%emt 0:00:28]} 6. Be2 {[%emt 0:00:10]} e5 {[%emt 0:00:36]} 7. d5 {[%emt 0:00:11]} a5 {[%emt 0:01:28]} 8. h3 {[%emt 0:00:11]} Na6 {[%emt 0:00:11]} 9. Bg5 {[%emt 0:00:12]} h6 {[%emt 0:00:12]} 10. Be3 {[%emt 0:00:08]} Nh5 {[%emt 0:00:13]} 11. Nd2 {[%emt 0:02:42] E92: King's Indian: Classical: 6 Be2 e5: 7 dxe5, 7 Be3 and Petrosian System without 7...Nbd7.} Nf4 {[%emt 0:00:12]} 12. Bf1 {[%emt 0:00:11]} a4 {[%emt 0:00:04] [#]} 13. Ndb1 $146 {[%emt 0:19:04] White is slightly better.} (13. Nxa4 f5 $11) ({Predecessor:} 13. a3 f5 14. g3 Nd3+ 15. Bxd3 f4 16. Qe2 fxe3 17. Qxe3 Nc5 18. Rh2 h5 19. Bc2 {½-½ (37) Gonzalez Sanchez,F (2238)-Hehir,M (2288) ICCF email 2019}) 13... f5 {[%emt 0:08:54]} 14. g3 {[%emt 0:00:51][%cal Bg2g3,Bg3g4][%mdl 32]} Nh5 {[%emt 0:01:20]} 15. exf5 $1 {[%emt 0:00:07]} Bxf5 {[%emt 0:01:53]} 16. g4 {[%emt 0:16:13][%cal Og4f5]} Bxb1 {[%emt 0:01:38]} 17. Rxb1 {[%emt 0:00:21]} Nf4 {[%emt 0:02:01][%cal Oe5e4]} 18. Ne4 {[%emt 0:00:10]} b6 {[%emt 0:05:41]} 19. Qc2 {[%emt 0:04:21]} Nc5 {[%emt 0:05:52]} 20. Rd1 {[%emt 0:02:20]} Qd7 {[%emt 0:18:19]} 21. Rg1 {[%emt 0:04:12]} Kh8 {[%emt 0:05:16]} 22. Rd2 {[%emt 0:09:11]} Qf7 {[%emt 0:02:17]} (22... Bf6 {seems wilder.} 23. Nxf6 Rxf6 24. g5 hxg5 25. Rxg5 Kg7) 23. h4 {[%emt 0:10:51]} Rfe8 {[%emt 0:04:37]} 24. Kd1 {[%emt 0:04:29]} Na6 {[%emt 0:07:46]} 25. Rg3 {[%emt 0:05:44]} Qe7 {[%emt 0:03:06]} 26. g5 {[%emt 0:01:13] Prevents a3.} h5 {[%emt 0:06:40]} (26... a3 $14) 27. Bh3 {[%emt 0:02:22]} (27. Nf6 $1 $16) 27... Rf8 $36 {[%emt 0:05:53][%mdl 2048] Black has some pressure.} 28. Ke1 {[%emt 0:03:48]} Nb4 {[%emt 0:02:59] Pair of Knights!} 29. Qb1 {[%emt 0:00:36]} Qf7 {[%emt 0:01:52]} 30. f3 {[%emt 0:02:37]} (30. Bxf4 $11 Qxf4 31. Bg2) 30... a3 $17 {[%emt 0:01:02]} 31. b3 {[%emt 0:00:20]} (31. bxa3 Rxa3 32. Kf2 Nxh3+ 33. Rxh3 Qf5 $19) 31... b5 $1 {[%emt 0:00:29] aiming for ...bxc4. Black is more active.} 32. Bf1 {[%emt 0:03:34] [#]} ({Better is} 32. Nf6 $15) 32... bxc4 $1 {[%emt 0:00:34]} 33. bxc4 {[%emt 0:00:06]} Rfb8 {[%emt 0:01:51][%cal Rb4d5] White must now prevent ...Nbxd5!} (33... Rab8 $5 {[%cal Rb4d5]} 34. Qc1 Ra8 $11) 34. Qd1 {[%emt 0:01:27]} Rb7 {[%emt 0:03:55]} 35. Kf2 $1 {[%emt 0:00:50]} Qe8 {[%emt 0:01:10]} 36. Kg1 {[%emt 0:01:07]} Rab8 {[%emt 0:01:25]} 37. Qc1 {[%emt 0:01:11]} Qa4 {[%emt 0:01:12][%cal Ob4a2] And now ...Nxa2! would win.} (37... Nxa2 {feels hotter.} 38. Rxa2 Rb2 39. Rxa3 Rb1) 38. Nc3 {[%emt 0:02:42]} Qa5 {[%emt 0:01:05][%cal Ob4a2]} 39. Nb5 {[%emt 0:02:49] [#]} Nfxd5 $1 {[%emt 0:04:25]} 40. cxd5 {[%emt 0:00:13]} Rxb5 {[%emt 0:00:25]} 41. Bxb5 {[%emt 0:30:57]} Rxb5 {[%emt 0:31:10]} 42. f4 $2 {[%emt 0:00:00]} ({White must play} 42. Qc3 $15) 42... exf4 $19 {[%emt 0:00:00]} ({Stronger than} 42... Nxd5 43. Bf2 $17) (42... Rxd5 43. f5 Rxd2 44. Bxd2 Qb6+ 45. Be3 $16) 43. Bd4 {[%emt 0:00:00]} Nxd5 {[%emt 0:00:00]} ({And not} 43... fxg3 44. Qf1 Kg8 45. Bxg7 $11) 44. Bxg7+ {[%emt 0:00:00]} Kxg7 {[%emt 0:00:00]} 45. Qa1+ {[%emt 0:00:00]} Kh7 {[%emt 0:00:00]} 46. Rgd3 {[%emt 0:00:00]} Qb6+ {[%emt 0:00:00]} ({Black should play} 46... Ne3 $19 {Strongly threatening ...Qb6.} 47. Qf6 Nf5 48. Qf7+ Ng7 49. Qxf4 (49. Kh2 $2 Rb2 $19) 49... Rb1+ 50. Kg2 Nf5) 47. Kh2 $2 {[%emt 0:00:00][%mdl 8192]} (47. Qd4 $15) 47... Ne3 {[%emt 0:00:00]} 48. Qc3 {[%emt 0:00:00]} Nf1+ {[%emt 0:00:00]} (48... Ng4+ $142 49. Kh3 Qb7) 49. Kh3 {[%emt 0:00:00]} Nxd2 {[%emt 0:00:00]} 50. Qf6 {[%emt 0:00:00] [#]} Rf5 $1 {[%emt 0:00:00]} 51. Qe7+ {[%emt 0:00:00]} Kg8 {[%emt 0:00:00][%cal Ob6g1] ( -> ...Qg1!)} 52. Rxa3 {[%emt 0:01:38]} Qc6 {[%emt 0:00:00] Weighted Error Value: White=0.54/Black=0.19 (very precise)} 0-1

[Event "Israeli Championship 2022"]
[Site "Yosiah Arad"]
[Date "2022.12.12"]
[Round "8.8"]
[White "Zemach, Nadav"]
[Black "Gorodetzky, David"]
[Result "0-1"]
[ECO "E60"]
[WhiteElo "2402"]
[BlackElo "2495"]
[Annotator "TA"]
[PlyCount "102"]
[EventDate "2022.12.05"]
[EventType "swiss"]
[EventCountry "ISR"]
[SourceTitle "playchess.com"]
[Source "ChessBase"]
[SourceQuality "1"]
[TimeControl "40/5400+30:1800+30"]

{[%evp 18,102,16,30,39,5,0,0,29,6,29,20,19,10,4,6,13,15,12,22,26,24,62,48,69,12,0,-86,-57,-64,-47,-128,-91,-123,-122,-124,-121,-115,-118,-115,-99,-122,-132,-132,-132,-118,-131,-136,-137,-133,-121,-121,-120,-225,-220,-210,-218,-229,-218,-287,-233,-239,-229,-302,-212,-262,-254,-258,-250,-250,-250,-1497,-1435,-4931,-4927,-4806,-4185,-2022,-1907,-29983,-29984,-29983,-29983,-29983,-29984,-29983,-29984]} 1. d4 {[%emt 0:00:06]} Nf6 {[%emt 0:00:47]} 2. c4 {[%emt 0:00:05][%cal Bc2c4,Bc4b5,Bb5a6][%mdl 32]} c5 {[%emt 0:00:11]} 3. d5 {[%emt 0:00:16]} b5 {[%emt 0:01:12]} 4. cxb5 {[%emt 0:00:12]} a6 {[%emt 0:00:10]} 5. bxa6 {[%emt 0:00:23]} g6 {[%emt 0:01:11]} 6. Nc3 {[%emt 0:00:42]} Bg7 {[%emt 0:01:53]} 7. g3 {[%emt 0:00:18]} O-O {[%emt 0:03:22]} 8. Bg2 {[%emt 0:00:56]} d6 {[%emt 0:00:39]} 9. Nf3 {[%emt 0:00:05]} Nxa6 {[%emt 0:02:33]} 10. O-O {[%emt 0:00:24]} Bf5 {[%emt 0:00:02] E60: King's Indian: Unusual lines and Fianchetto Variation without Nc3.} 11. Nh4 {[%emt 0:01:42] aiming for Nxf5.} (11. a3 $5 {[%cal Rf3d2]}) 11... Bd7 {[%emt 0:04:56]} 12. h3 {[%emt 0:08:42]} Qb6 {[%emt 0:10:25] The position is equal.} 13. Re1 {[%emt 0:07:25]} Rfb8 {[%emt 0:13:30] [#]} 14. Nf3 $146 {[%emt 0:09:14]} ({Predecessor:} 14. Rb1 Ne8 15. Bd2 Nec7 16. b3 Nb5 17. Nxb5 Bxb5 18. a4 Bd7 19. e4 c4 20. bxc4 Qxb1 21. Qxb1 Rxb1 22. Rxb1 Bxa4 {1-0 (36) Stern,R (2504)-Schulz,K (2343) Guben 2011}) 14... Bc8 {[%emt 0:08:16]} 15. Rb1 {[%emt 0:03:34]} Nc7 {[%emt 0:00:43]} 16. e4 {[%emt 0:15:05][%cal Be2e4,Be4e5][%mdl 32]} Nd7 {[%emt 0:00:48][%cal Bf6d7,Bd7b6,Bb6d5,Bd5b4][%mdl 32] Against e5. White must now prevent ...Bxc3.} 17. Bd2 {[%emt 0:07:01]} Nb5 {[%emt 0:05:09]} 18. Na4 {[%emt 0:03:40]} Qa7 {[%emt 0:08:36]} 19. b3 {[%emt 0:01:40]} Nb6 {[%emt 0:00:15][%cal Rb6a4]} 20. e5 $1 {[%emt 0:04:23]} Bf5 {[%emt 0:06:19][%cal Rb6a4] [#]} 21. Rb2 {[%emt 0:05:58]} (21. Nxb6 $1 $14 Rxb6 22. Rb2) 21... Nxd5 $11 {[%emt 0:03:55]} 22. Qe2 {[%emt 0:03:58]} (22. Ng5 $11 {keeps the balance.} Ndc7 23. g4) 22... Nbc7 {[%emt 0:02:44]} 23. Bc1 {[%emt 0:05:35]} Nb4 {[%emt 0:07:59] Black is more active.} 24. Rd2 {[%emt 0:01:21] Prevents Nd3. Black keeps a firm grip on the game.} (24. Rd1 $15) 24... d5 $17 {[%emt 0:02:17]} 25. Ba3 {[%emt 0:04:17][%cal Oe5e6]} Bd7 {[%emt 0:01:11] Prevents e6.} 26. Bxb4 {[%emt 0:01:16]} Rxb4 {[%emt 0:00:07]} 27. Nc3 {[%emt 0:00:08]} e6 {[%emt 0:01:59]} 28. Rc2 {[%emt 0:02:15]} c4 {[%emt 0:01:39]} 29. Nd2 {[%emt 0:01:53][%cal Rb3c4]} cxb3 {[%emt 0:03:00]} 30. Nxb3 {[%emt 0:00:11]} Nb5 {[%emt 0:01:54]} 31. Nxb5 {[%emt 0:10:30]} Bxb5 {[%emt 0:00:04]} 32. Qd2 {[%emt 0:00:08]} Ra4 {[%emt 0:00:22]} 33. Bf1 {[%emt 0:01:23]} Bc4 {[%emt 0:03:51]} 34. Bxc4 {[%emt 0:00:26]} Rxc4 {[%emt 0:02:45]} 35. Rxc4 {[%emt 0:00:02]} (35. Re2 $17) 35... dxc4 $19 {[%emt 0:00:02]} 36. Nc1 {[%emt 0:00:08]} Qc5 {[%emt 0:02:00]} 37. Qe3 {[%emt 0:01:26]} Qd5 {[%emt 0:00:23]} 38. Qe2 {[%emt 0:01:46]} h5 {[%emt 0:00:16]} 39. Rd1 {[%emt 0:00:20]} Qc5 {[%emt 0:00:55]} ({Stronger than} 39... Qxe5 40. Qxc4 Ra3 41. Rd8+ Kh7 42. Rd3 $17) 40. Qf3 {[%emt 0:01:00]} Rf8 {[%emt 0:02:10][%cal Ba8f8,Bf8d8,Bd8d2][%mdl 32]} 41. Ne2 {[%emt 0:01:49]} Bxe5 {[%emt 0:02:23] Strongly threatening ...c3.} (41... Qxe5 $2 {loses.} 42. Rc1 $19) 42. Rc1 {[%emt 0:03:01]} Rd8 {[%emt 0:04:34] And now ...Rd2 would win.} 43. Qe4 {[%emt 0:02:46]} c3 {[%emt 0:03:06][%cal Bc4c3,Bc3c2][%mdl 32] Hoping for ...Rd2.} 44. Nf4 $2 {[%emt 0:04:40]} (44. Qe3 Qxe3 45. fxe3) 44... Bxf4 {[%emt 0:10:15]} 45. Qxf4 {[%emt 0:01:22][%mdl 4096] Endgame KQR-KQR} c2 {[%emt 0:00:50] ( -> ...Rd1+)} 46. Qf3 {[%emt 0:01:10] Inhibits Rd1+.} Rd2 {[%emt 0:02:20]} 47. Kg2 {[%emt 0:05:01]} Qd4 {[%emt 0:01:19]} 48. Qf4 {[%emt 0:06:05]} Qd5+ {[%emt 0:00:16] Black mates.} 49. Qf3 {[%emt 0:00:27] [#]} Rxf2+ $3 {[%emt 0:00:12][%mdl 512]} 50. Kxf2 {[%emt 0:00:16]} Qd2+ {[%emt 0:00:07]} (50... Qxa2 $2 51. Qe4 $18) 51. Qe2 {[%emt 0:00:46]} Qxc1 {[%emt 0:00:06] Weighted Error Value: White=0.57/Black=0.08 (flawless)} 0-1

[Event "Israeli Championship 2022"]
[Site "Yosiah Arad"]
[Date "2022.12.12"]
[Round "8.9"]
[White "Rozen, Eytan"]
[Black "Iliaguev, Nisim"]
[Result "1/2-1/2"]
[ECO "C11"]
[WhiteElo "2459"]
[BlackElo "2364"]
[Annotator "TA"]
[PlyCount "61"]
[EventDate "2022.12.05"]
[EventType "swiss"]
[EventCountry "ISR"]
[SourceTitle "playchess.com"]
[Source "ChessBase"]
[SourceQuality "1"]
[TimeControl "40/5400+30:1800+30"]

{[%evp 12,61,4,0,0,0,0,-3,-13,-7,-6,-18,-22,-38,-27,-36,0,-13,0,0,0,0,36,11,3,0,34,0,21,14,33,43,49,27,47,26,35,17,41,16,31,-9,28,0,37,4,4,6,8,0,0,0]} 1. e4 {[%emt 0:00:07]} e6 {[%emt 0:00:11]} 2. d4 {[%emt 0:00:53]} d5 {[%emt 0:00:06]} 3. Nc3 {[%emt 0:00:35][%cal Bb1c3,Bc3e2,Be2d4][%mdl 32]} Nf6 {[%emt 0:00:12]} 4. e5 {[%emt 0:00:15]} Nfd7 {[%emt 0:00:05]} 5. Nce2 {[%emt 0:00:04]} c5 {[%emt 0:02:06]} 6. c3 {[%emt 0:00:18]} Nc6 {[%emt 0:01:10]} 7. f4 {[%emt 0:00:55]} b5 {[%emt 0:05:15] C11: French: Classical System: 4 e5 and 4 Bg5 dxe4.} 8. dxc5 {[%emt 0:02:35]} Bxc5 {[%emt 0:02:19]} 9. Nd4 {[%emt 0:00:05]} Qb6 {[%emt 0:07:18][%cal Rc6d4]} 10. Ngf3 {[%emt 0:00:03]} b4 {[%emt 0:06:44]} 11. Be3 {[%emt 0:10:09]} Ba6 {[%emt 0:03:40] [#]} 12. Bd3 $146 {[%emt 0:00:26]} ({Predecessor:} 12. Qa4 Bxf1 13. Rxf1 Na5 14. Bf2 Nc4 15. Rb1 bxc3 16. b4 Nd2 17. Rc1 Nxf3+ {0-1 (17) Bargel,M (2117)-Musil,M (1984) Czech Republic 2019}) 12... bxc3 {[%emt 0:03:16]} 13. bxc3 {[%emt 0:00:13]} Bxd4 {[%emt 0:02:12]} 14. cxd4 {[%emt 0:01:11]} Bxd3 {[%emt 0:05:45]} 15. Qxd3 {[%emt 0:00:03]} Qb4+ {[%emt 0:05:08]} 16. Kf2 {[%emt 0:02:32]} Qc4 {[%emt 0:04:56]} 17. Qa3 {[%emt 0:02:03] [#] Strongly threatening Rhc1.} (17. Qxc4 {simplifies} dxc4 18. Rab1 Nb6 19. Nd2) 17... Qb4 {[%emt 0:01:17]} 18. Qd3 {[%emt 0:00:09]} (18. Qxb4 {simplifies} Nxb4 19. Bd2 a5 20. Kg3) 18... Qc4 {[%emt 0:00:01]} 19. Qa3 {[%emt 0:00:07] Threatens to win with Rhc1.} (19. Qxc4 {simplifies} dxc4 20. Rab1 Nb6 21. Nd2) 19... Qb4 {[%emt 0:00:02]} 20. Qa6 {[%emt 0:00:01]} (20. Qxb4 {simplifies} Nxb4 21. Bd2 a5 22. Ke2) 20... Qc4 {[%emt 0:00:47]} 21. Qxc4 {[%emt 0:00:25]} dxc4 {[%emt 0:00:01]} 22. Rhc1 {[%emt 0:00:41]} Nb6 {[%emt 0:00:40]} 23. Nd2 {[%emt 0:00:17][%cal Bf3d2,Bd2e4,Be4d6][%mdl 32]} (23. Rab1 $5 {[%cal Rf3d2]}) 23... Nb4 {[%emt 0:01:24]} 24. Ke2 {[%emt 0:01:00]} Rc8 {[%emt 0:00:29]} 25. Ne4 {[%emt 0:03:24]} O-O {[%emt 0:06:58]} 26. Rab1 {[%emt 0:01:34][%cal Ba1b1,Bb1b5,Bb5c5][%mdl 32]} ({Much weaker is} 26. Nd6 Rc6 $11) 26... N4d5 {[%emt 0:03:35]} (26... N6d5 {with more complications.} 27. a3 f5 28. exf6 Nd3) 27. Nd6 {[%emt 0:01:35]} Rc7 {[%emt 0:03:39]} 28. Rb5 {[%emt 0:01:46]} c3 {[%emt 0:04:43] The position is equal.} 29. Rc5 {[%emt 0:01:45] Inhibits Nc4. Black must now prevent Rxc7.} Na4 {[%emt 0:03:26] Pair of Knights!} 30. Ra5 {[%emt 0:00:11]} Nab6 {[%emt 0:00:34]} 31. Rc5 {[%emt 0:00:19] Weighted Error Value: White=0.13 (very precise) /Black=0.12 (very precise)} 1/2-1/2